bitfinex-derivatives/quotes_BTCF0:USTF0_20251011
["timestamp","ask_amount","ask_price","bid_price","bid_amount"]
[1760201129318,0.90600872,111500.0,111490.0,0.15386]
[1760201130118,0.90700872,111500.0,111490.0,0.17642]
[1760201130815,0.90700872,111500.0,111490.0,0.2660244]
[1760201132114,0.97690108,111500.0,111490.0,0.2660244]
[1760201132317,0.52228866,111500.0,111490.0,0.2660244]
[1760201132517,0.97790108,111500.0,111490.0,0.2660244]
[1760201133312,0.52228866,111500.0,111490.0,0.2660244]
[1760201133511,0.97790108,111500.0,111490.0,0.2660244]
[1760201135221,0.07189236,111500.0,111490.0,0.72163682]
[1760201135923,0.52750478,111500.0,111490.0,0.72163682]
[1760201136223,0.07189236,111500.0,111490.0,0.72163682]
[1760201136416,0.52750478,111500.0,111490.0,0.72163682]
[1760201137821,0.52750478,111500.0,111490.0,0.2660244]
[1760201138023,0.88830478,111500.0,111490.0,0.2660244]
[1760201142722,0.43269236,111500.0,111490.0,0.2660244]
[1760201142924,0.52750478,111500.0,111490.0,0.72163682]
[1760201143222,0.07189236,111500.0,111490.0,1.48243682]
[1760201143821,0.002,111500.0,111490.0,1.48243682]
[1760201144016,8.952e-05,111510.0,111500.0,0.1254463]
[1760201144222,0.81641242,111530.0,111520.0,0.1254303]
[1760201144427,0.81641242,111530.0,111520.0,0.2454303]
[1760201145329,0.3608,111530.0,111520.0,0.2454303]
[1760201145528,0.81641242,111530.0,111520.0,0.2454303]
[1760201146130,0.81741242,111530.0,111520.0,0.2454303]
[1760201146730,0.81841242,111530.0,111520.0,0.2454303]
[1760201147532,0.45761242,111530.0,111520.0,0.2454303]
[1760201147732,0.54718462,111530.0,111520.0,0.2454303]
[1760201147929,0.90798462,111530.0,111520.0,0.2454303]
[1760201148130,0.90798462,111530.0,111520.0,0.15585]
[1760201148832,1.30798462,111530.0,111520.0,0.12]
[1760201149332,0.0895803,111520.0,111510.0,0.01385]
[1760201149530,0.90599272,111520.0,111510.0,0.09585]
[1760201150527,0.90599272,111520.0,111510.0,0.1854383]
[1760201150732,0.4523777,111530.0,111520.0,0.1254303]
[1760201150932,0.90699012,111530.0,111520.0,0.2554303]
[1760201151432,0.90599012,111530.0,111520.0,0.16585]
[1760201152333,0.90699012,111530.0,111520.0,0.16585]
[1760201153825,0.90699012,111530.0,111520.0,0.14385]
[1760201155033,0.90699012,111530.0,111520.0,0.16585]
[1760201155231,0.90699012,111530.0,111520.0,0.2554303]
[1760201156034,0.90699012,111530.0,111520.0,0.16585]
[1760201156736,0.90699012,111530.0,111520.0,0.14385]
[1760201157237,1.30699012,111530.0,111520.0,0.14385]
[1760201157536,1.30699012,111530.0,111520.0,0.13]
[1760201158437,1.30699012,111530.0,111520.0,0.14385]
[1760201159537,0.8513777,111530.0,111520.0,0.14385]
[1760201159739,1.30699012,111530.0,111520.0,0.16585]
[1760201161536,0.4513777,111530.0,111520.0,0.16585]
[1760201161734,0.90699012,111530.0,111520.0,0.2554303]
[1760201162335,0.3618,111530.0,111520.0,1.11104272]
[1760201162540,0.45661242,111530.0,111520.0,1.11104272]
[1760201162740,0.45661242,111530.0,111520.0,0.6554303]
[1760201162943,0.90698462,111530.0,111520.0,0.6554303]
[1760201168553,0.81741242,111530.0,111520.0,0.6554303]
[1760201169751,0.90698462,111530.0,111520.0,0.6554303]
[1760201171449,0.85630536,111530.0,111520.0,0.6554303]
[1760201172752,0.4513722,111530.0,111520.0,0.6554303]
[1760201175550,0.3618,111530.0,111520.0,0.6554303]
[1760201177157,0.001,111530.0,111520.0,1.06036346]
[1760201177559,0.001,111530.0,111520.0,1.42116346]
[1760201177852,0.001,111530.0,111520.0,1.16573316]
[1760201178059,0.3618,111530.0,111520.0,0.49057316]
[1760201178455,0.3618,111530.0,111520.0,0.58015346]
[1760201179150,0.38055,111530.0,111520.0,0.1752203]
[1760201179558,0.3618,111530.0,111520.0,0.1752203]
[1760201180555,0.38055,111530.0,111520.0,0.1752203]
[1760201181155,0.78055,111530.0,111520.0,0.1752203]
[1760201181452,1.18548316,111530.0,111520.0,0.08564]
[1760201181660,1.27505526,111530.0,111520.0,0.1752201]
[1760201182354,1.18548316,111530.0,111520.0,0.1752201]
[1760201182559,1.27505526,111530.0,111520.0,0.08564]
[1760201182753,2.09170842,111530.0,111520.0,0.0334706]
[1760201183463,0.1199182,111510.0,111500.0,0.02189]
[1760201183653,1.58528076,111510.0,111500.0,0.14189]
[1760201185460,1.58528076,111510.0,111500.0,0.15564]
[1760201185760,1.58528076,111510.0,111500.0,0.14189]
[1760201185954,1.58528076,111510.0,111500.0,0.15564]
[1760201188159,1.1722776,111510.0,111500.0,0.15564]
[1760201188359,1.57721076,111510.0,111500.0,0.15564]
[1760201189665,1.57721076,111510.0,111500.0,0.2452363]
[1760201194567,1.57721076,111510.0,111500.0,0.15564]
[1760201195168,1.57721076,111510.0,111500.0,0.2452363]
[1760201196769,1.48762256,111510.0,111500.0,0.2452363]
[1760201197168,1.0826894,111510.0,111500.0,0.2452363]
[1760201197370,1.1722776,111510.0,111500.0,0.6452363]
[1760201197963,1.57721076,111510.0,111500.0,0.6452363]
[1760201198469,1.57721076,111510.0,111500.0,0.2452363]
[1760201199169,1.58528076,111510.0,111500.0,0.2452363]
[1760201199363,1.58528076,111510.0,111500.0,0.2314863]
[1760201202370,1.24645136,111510.0,111500.0,0.2314863]
[1760201203068,1.98528076,111510.0,111500.0,0.12]
[1760201203364,0.0213,111480.0,111470.0,0.23657882]
[1760201203571,0.3821,111480.0,111470.0,0.2648965]
[1760201204268,0.3821,111480.0,111470.0,0.27699569]
[1760201204974,0.4717124,111480.0,111470.0,0.27699569]
[1760201205769,0.87764556,111480.0,111470.0,0.18737919]
[1760201206070,0.87764556,111480.0,111470.0,0.27699959]
[1760201206272,0.4727124,111480.0,111470.0,0.27699959]
[1760201207176,0.89064556,111480.0,111470.0,0.18737919]
[1760201207675,0.89064556,111480.0,111470.0,0.16153]
[1760201207872,0.89064556,111480.0,111470.0,0.14]
[1760201208376,0.89064556,111480.0,111470.0,0.16153]
[1760201213076,0.4727124,111480.0,111470.0,0.2650405]
[1760201213276,0.87764556,111480.0,111470.0,0.17542]
[1760201213877,0.89064556,111480.0,111470.0,0.17542]
[1760201219087,0.89064556,111480.0,111470.0,0.2650405]
[1760201219588,0.4727124,111480.0,111470.0,0.2650405]
[1760201219884,0.87764556,111480.0,111470.0,0.2650405]
[1760201220281,0.3831,111480.0,111470.0,1.06997366]
[1760201220486,0.3618,111480.0,111470.0,1.06997366]
[1760201221390,0.3618,111480.0,111470.0,0.6650405]
[1760201221586,0.3618,111480.0,111470.0,1.06997366]
[1760201222090,0.3608,111480.0,111470.0,1.06997366]
[1760201226490,0.3608,111490.0,111480.0,0.1250324]
[1760201226699,0.3608,111490.0,111480.0,0.66996556]
[1760201227696,0.3618,111490.0,111480.0,0.66996556]
[1760201228497,0.3608,111490.0,111480.0,0.66996556]
[1760201230498,0.3821,111490.0,111480.0,0.2650324]
[1760201230699,0.3831,111490.0,111480.0,0.2650324]
[1760201231902,0.3821,111490.0,111480.0,0.2650324]
[1760201232103,0.3608,111490.0,111480.0,0.2650324]
[1760201233407,0.3608,111490.0,111480.0,0.72075873]
[1760201233606,0.3608,111500.0,111490.0,0.1249344]
[1760201233903,0.3608,111500.0,111490.0,0.72066073]
[1760201235310,0.3618,111500.0,111490.0,0.72066073]
[1760201236511,0.3618,111500.0,111490.0,1.12066073]
[1760201236913,0.001,111500.0,111490.0,1.12066073]
[1760201238107,0.83903633,111510.0,111500.0,0.1249263]
[1760201238312,0.83903633,111510.0,111500.0,0.70065263]
[1760201238715,0.83903633,111510.0,111500.0,0.2449263]
[1760201239309,0.83903633,111510.0,111500.0,0.70065263]
[1760201239613,0.83903633,111510.0,111500.0,0.2449263]
[1760201240212,0.84003633,111510.0,111500.0,0.2449263]
[1760201242916,0.3618,111510.0,111500.0,0.70065263]
[1760201243509,0.3608,111510.0,111500.0,0.70065263]
[1760201243716,0.3618,111510.0,111500.0,0.70065263]
[1760201243916,0.81752633,111510.0,111500.0,0.70065263]
[1760201244314,0.001,111510.0,111500.0,1.10065263]
[1760201244711,0.45672633,111510.0,111500.0,1.10065263]
[1760201245017,0.001,111510.0,111500.0,1.10065263]
[1760201246722,0.3618,111510.0,111500.0,1.10065263]
[1760201247217,1.39836096,111510.0,111500.0,0.14267]
[1760201247414,1.79836096,111510.0,111500.0,0.14267]
[1760201249217,1.79836096,111510.0,111500.0,0.12]
[1760201249915,1.79836096,111510.0,111500.0,0.14267]
[1760201250420,1.39836096,111510.0,111500.0,0.14267]
[1760201250821,1.79836096,111510.0,111500.0,0.12]
[1760201251016,1.79836096,111510.0,111470.0,0.1035049]
[1760201251217,1.19983633,111480.0,111470.0,0.2461749]
[1760201252321,1.19983633,111480.0,111470.0,0.70190123]
[1760201252521,0.3608,111480.0,111470.0,1.10290123]
[1760201252920,0.3608,111480.0,111470.0,1.10390123]
[1760201257221,0.3608,111490.0,111480.0,0.1249424]
[1760201257414,0.3608,111490.0,111480.0,0.71066873]
[1760201259226,0.83903633,111490.0,111480.0,0.71066873]
[1760201259616,0.83903633,111490.0,111480.0,0.2549424]
[1760201260324,0.38331,111490.0,111480.0,0.71066873]
[1760201260524,0.83903633,111490.0,111480.0,0.71066873]
[1760201263430,0.83903633,111490.0,111480.0,0.2549424]
[1760201263628,0.83903633,111490.0,111480.0,0.71066873]
[1760201264128,0.83903633,111490.0,111480.0,0.2549424]
[1760201265231,0.83903633,111490.0,111480.0,0.71066873]
[1760201270031,0.83903633,111490.0,111480.0,0.2549424]
[1760201270234,0.83903633,111490.0,111480.0,0.71066873]
[1760201270429,0.83903633,111490.0,111480.0,0.2549424]
[1760201270630,0.83903633,111490.0,111480.0,0.71066873]
[1760201270832,0.83903633,111490.0,111480.0,0.2549424]
[1760201271031,0.83903633,111490.0,111480.0,0.71066873]
[1760201271732,0.3608,111490.0,111480.0,0.71066873]
[1760201272333,0.3608,111490.0,111480.0,1.16639506]
[1760201272534,0.38202,111510.0,111500.0,0.1025463]
[1760201272833,0.3608,111510.0,111500.0,0.70944263]
[1760201274734,0.3618,111510.0,111500.0,0.70944263]
[1760201275138,0.001,111510.0,111500.0,0.70944263]
[1760201276238,0.001,111510.0,111500.0,0.82112495]
[1760201276836,0.001,111510.0,111500.0,0.70944263]
[1760201277340,0.001,111510.0,111500.0,0.82112495]
[1760201278140,0.001,111510.0,111500.0,0.70944263]
[1760201282243,0.3608,111520.0,111510.0,0.1237083]
[1760201282442,0.3608,111530.0,111520.0,0.1237003]
[1760201282642,0.3608,111530.0,111520.0,0.69942663]
[1760201282843,0.38202,111530.0,111520.0,0.69942663]
[1760201283844,0.45229571,111540.0,111530.0,0.1236922]
[1760201284045,0.45229571,111540.0,111530.0,0.71941853]
[1760201284246,0.45229571,111540.0,111530.0,0.2636922]
[1760201284544,0.45229571,111540.0,111530.0,0.71941853]
[1760201285544,0.45229571,111540.0,111530.0,0.7602874]
[1760201285946,0.38202,111540.0,111530.0,0.7602874]
[1760201287949,0.454453,111550.0,111540.0,0.1236842]
[1760201288141,0.433233,111550.0,111540.0,0.68941053]
[1760201288548,0.38202,111560.0,111550.0,0.1236762]
[1760201288845,0.3608,111560.0,111550.0,0.68940253]
[1760201289247,0.38202,111560.0,111550.0,0.68940253]
[1760201289948,0.38302,111560.0,111550.0,0.68940253]
[1760201290844,0.83874633,111560.0,111550.0,0.2336762]
[1760201291046,0.83974633,111560.0,111550.0,0.68940253]
[1760201291448,1.60054633,111560.0,111550.0,0.2336762]
[1760201292247,1.1236,111560.0,111550.0,0.68940253]
[1760201292451,0.74594,111560.0,111550.0,0.68940253]
[1760201293753,0.7236,111560.0,111550.0,0.68940253]
[1760201294751,0.74594,111560.0,111550.0,0.68940253]
[1760201295452,0.74594,111560.0,111550.0,0.63826603]
[1760201297655,0.7236,111560.0,111550.0,0.63826603]
[1760201298153,0.7236,111560.0,111550.0,1.03826603]
[1760201298952,0.3628,111560.0,111550.0,1.03826603]
[1760201299748,0.002,111560.0,111550.0,1.03826603]
[1760201302455,0.001,111560.0,111550.0,1.03826603]
[1760201302655,0.4548581,111570.0,111560.0,0.1250682]
[1760201302855,0.4548581,111570.0,111560.0,0.2450682]
[1760201303352,0.4325181,111570.0,111560.0,0.64965803]
[1760201303556,0.4548581,111570.0,111560.0,0.64965803]
[1760201303855,0.4558581,111570.0,111560.0,0.64965803]
[1760201307660,0.4558581,111570.0,111560.0,0.2450682]
[1760201308157,0.4558581,111570.0,111560.0,0.64965803]
[1760201309258,0.4558581,111570.0,111560.0,0.2450682]
[1760201312763,0.5453982,111570.0,111560.0,0.15552]
[1760201312961,1.36289803,111570.0,111560.0,0.14239]
[1760201313458,1.36289803,111570.0,111560.0,0.12]
[1760201313856,1.36289803,111570.0,111560.0,0.14239]
[1760201314456,1.36289803,111570.0,111560.0,0.2319382]
[1760201316058,1.36289803,111570.0,111560.0,0.2450682]
[1760201316258,0.9583082,111570.0,111560.0,0.2450682]
[1760201317056,0.4558581,111570.0,111560.0,0.64965803]
[1760201317358,0.4558581,111570.0,111560.0,1.04965803]
[1760201317359,0.001,111570.0,111560.0,1.04965803]
[1760201321164,0.02386,111570.0,111560.0,0.64965803]
[1760201321365,0.001,111570.0,111560.0,0.64965803]
[1760201322867,0.3829,111570.0,111560.0,0.2450682]
[1760201323069,1.20039983,111570.0,111560.0,0.2450681]
[1760201323564,0.7829,111570.0,111560.0,0.2450681]
[1760201329474,0.7618,111570.0,111560.0,0.2450681]
[1760201330274,0.7829,111570.0,111560.0,0.2450681]
[1760201330870,0.7618,111570.0,111560.0,0.2450681]
[1760201331070,0.3618,111570.0,111560.0,0.64965793]
[1760201331375,0.3618,111570.0,111560.0,1.04965793]
[1760201333578,0.3829,111570.0,111560.0,0.6450681]
[1760201333773,0.3829,111570.0,111560.0,1.04965793]
[1760201334078,0.3618,111570.0,111560.0,1.04965793]
[1760201335578,0.001,111570.0,111560.0,1.04965793]
[1760201336178,0.3618,111570.0,111560.0,1.04965793]
[1760201336377,0.001,111570.0,111560.0,1.04965793]
[1760201338681,0.001,111570.0,111560.0,0.64965793]
[1760201339981,0.3618,111570.0,111560.0,0.64965793]
[1760201341284,0.001,111570.0,111560.0,0.64965793]
[1760201341478,0.001,111570.0,111560.0,0.76134025]
[1760201342079,0.001,111570.0,111560.0,0.64965793]
[1760201342375,0.001,111570.0,111560.0,0.2450681]
[1760201342583,0.001,111570.0,111560.0,0.64965793]
[1760201342786,0.0221,111570.0,111560.0,0.64965793]
[1760201343272,0.3829,111570.0,111560.0,0.64965793]
[1760201344878,0.3618,111570.0,111560.0,0.64965793]
[1760201351584,0.3829,111570.0,111560.0,0.64965793]
[1760201352588,0.3618,111570.0,111560.0,0.64965793]
[1760201353887,0.38319,111570.0,111560.0,0.64965793]
[1760201355287,0.3618,111570.0,111560.0,0.64965793]
[1760201355584,0.38319,111570.0,111560.0,0.64965793]
[1760201356589,0.3618,111570.0,111560.0,0.64965793]
[1760201357492,0.3618,111570.0,111560.0,0.7001234]
[1760201357689,0.38319,111570.0,111560.0,0.7001234]
[1760201358790,0.3618,111570.0,111560.0,0.7001234]
[1760201360990,0.001,111570.0,111560.0,1.0609234]
[1760201362089,0.001,111570.0,111560.0,1.17260572]
[1760201367596,0.001,111570.0,111560.0,1.0609234]
[1760201368000,0.001,111570.0,111560.0,1.17260572]
[1760201370104,0.001,111570.0,111560.0,1.62766102]
[1760201370999,0.001,111570.0,111560.0,1.5159787]
[1760201371509,0.001,111570.0,111560.0,1.62875035]
[1760201374209,0.001,111570.0,111560.0,2.02875035]
[1760201374499,0.07173391,111590.0,111580.0,0.58107763]
[1760201374705,0.3608,111600.0,111590.0,0.125224]
[1760201374904,0.3608,111600.0,111590.0,0.7102793]
[1760201375303,0.38219,111610.0,111600.0,0.125216]
[1760201375500,0.38219,111610.0,111600.0,0.7102713]
[1760201375700,0.45552201,111610.0,111600.0,0.7102713]
[1760201376306,0.85552201,111610.0,111600.0,0.7102713]
[1760201376500,0.85752201,111610.0,111600.0,0.7102713]
[1760201377005,0.43613201,111610.0,111600.0,0.7102713]
[1760201377204,0.43713201,111610.0,111600.0,0.7102713]
[1760201377704,0.43713201,111610.0,111600.0,0.7443453]
[1760201377908,0.45852201,111610.0,111600.0,0.7443453]
[1760201378808,0.43713201,111610.0,111600.0,0.7443453]
[1760201379710,0.45852201,111610.0,111600.0,0.28929]
[1760201380102,0.45852201,111610.0,111600.0,0.7443453]
[1760201381708,0.43713201,111610.0,111600.0,0.7443453]
[1760201383513,0.3638,111610.0,111600.0,1.1994006]
[1760201383812,0.003,111610.0,111600.0,1.1994006]
[1760201384210,0.003,111610.0,111600.0,1.5994006]
[1760201385410,0.003,111610.0,111600.0,1.9602006]
[1760201386510,0.003,111610.0,111600.0,0.7443453]
[1760201386716,0.02513,111610.0,111600.0,0.7443453]
[1760201387013,0.02513,111610.0,111600.0,0.7443454]
[1760201392520,0.003,111610.0,111600.0,0.7443454]
[1760201393622,0.003,111610.0,111600.0,1.1994007]
[1760201396724,0.003,111610.0,111600.0,1.5994007]
[1760201397920,0.003,111610.0,111600.0,1.9602007]
[1760201400824,0.003,111610.0,111600.0,1.1051454]
[1760201401026,0.003,111610.0,111600.0,0.7443454]
[1760201401225,0.02513,111610.0,111600.0,0.7443454]
[1760201401528,0.02513,111610.0,111600.0,1.1994007]
[1760201401923,0.003,111610.0,111600.0,0.7443454]
[1760201402222,0.02513,111610.0,111600.0,0.7443454]
[1760201402626,0.4307819,111620.0,111600.0,1.1994007]
[1760201402824,0.4056,111660.0,111650.0,0.1173059]
[1760201403024,0.4056,111660.0,111650.0,0.7023612]
[1760201403025,0.0448,111660.0,111650.0,0.7023612]
[1760201403225,0.4056,111660.0,111650.0,0.6128853]
[1760201403426,0.4056,111660.0,111650.0,0.7023612]
[1760201404518,0.4096,111660.0,111650.0,0.7023612]
[1760201404721,0.0488,111660.0,111650.0,1.0631612]
[1760201405925,0.11877115,111660.0,111650.0,1.0631612]
[1760201406522,0.0488,111660.0,111650.0,1.9182165]
[1760201407127,0.0488,111660.0,111650.0,2.01975182]
[1760201410326,0.004,111660.0,111650.0,2.01975182]
[1760201413928,0.03833,111660.0,111650.0,0.51216]
[1760201414130,0.1277979,111660.0,111650.0,0.6064153]
[1760201414328,0.9436532,111660.0,111650.0,0.6064153]
[1760201414728,0.4885979,111660.0,111650.0,0.6064153]
[1760201415127,0.39913,111660.0,111650.0,0.6064153]
[1760201415428,0.8845979,111660.0,111650.0,0.6064153]
[1760201415633,0.8845979,111660.0,111650.0,0.15136]
[1760201415634,1.3406532,111660.0,111650.0,0.15136]
[1760201415829,1.3406532,111660.0,111640.0,0.4550553]
[1760201415830,0.01307,111640.0,111630.0,0.4550553]
[1760201416030,0.03433,111640.0,111630.0,0.5050553]
[1760201416928,0.03533,111640.0,111630.0,0.5050553]
[1760201417933,0.03533,111640.0,111630.0,0.5945472]
[1760201419634,0.03533,111640.0,111630.0,0.54350527]
[1760201419834,0.39613,111640.0,111630.0,0.05]
[1760201420334,0.39613,111640.0,111630.0,0.45401337]
[1760201420733,0.39613,111640.0,111630.0,0.05]
[1760201421234,0.39613,111640.0,111630.0,0.139492]
[1760201421429,0.39613,111640.0,111630.0,0.54350537]
[1760201421633,0.37487,111640.0,111630.0,0.54350537]
[1760201422438,0.37387,111660.0,111630.0,1.70831874]
[1760201422643,0.43284035,111670.0,111660.0,0.119548]
[1760201422940,0.43284035,111670.0,111660.0,0.65356137]
[1760201424343,0.46717035,111670.0,111660.0,0.64626137]
[1760201425444,0.46717035,111670.0,111660.0,0.242248]
[1760201425739,0.46717035,111670.0,111660.0,0.64626137]
[1760201426141,0.44591035,111670.0,111660.0,0.64626137]
[1760201426341,0.43284035,111670.0,111660.0,0.65356137]
[1760201430356,0.07204035,111670.0,111660.0,0.65356137]
[1760201430750,0.39608,111680.0,111670.0,0.1127199]
[1760201430951,0.39608,111680.0,111670.0,0.63673327]
[1760201431940,0.39708,111680.0,111670.0,0.63673327]
[1760201433551,0.46758258,111680.0,111670.0,0.63673327]
[1760201434445,0.47198258,111680.0,111670.0,0.63673327]
[1760201434948,0.47198258,111680.0,111670.0,0.66593492]
[1760201435448,1.18545191,111680.0,111670.0,0.66593492]
[1760201438551,1.27490381,111680.0,111670.0,0.26192155]
[1760201441651,0.47198258,111680.0,111670.0,0.26192155]
[1760201441855,0.43670258,111680.0,111670.0,1.07323492]
[1760201442054,0.07590258,111680.0,111670.0,1.07323492]
[1760201442456,0.07590258,111680.0,111670.0,0.67323492]
[1760201444856,0.45982258,111680.0,111670.0,0.67323492]
[1760201447352,0.43670258,111680.0,111670.0,0.67323492]
[1760201447960,0.45982258,111680.0,111670.0,0.67323492]
[1760201448664,0.87343258,111680.0,111670.0,0.26192155]
[1760201451160,1.36689785,111680.0,111670.0,0.17246165]
[1760201451361,1.36689785,111680.0,111670.0,0.05920165]
[1760201451861,1.36689785,111680.0,111670.0,0.03]
[1760201452362,0.03673,111670.0,111660.0,0.0894678]
[1760201452562,0.39753,111670.0,111660.0,0.2094678]
[1760201453561,0.39853,111670.0,111660.0,0.2094678]
[1760201454462,0.39853,111670.0,111660.0,0.23855961]
[1760201455662,0.39753,111670.0,111660.0,0.23855961]
[1760201455863,0.39853,111670.0,111660.0,0.23855961]
[1760201456254,0.39853,111670.0,111660.0,0.64257298]
[1760201456460,0.39753,111670.0,111660.0,0.64257298]
[1760201456664,0.39853,111670.0,111660.0,0.64257298]
[1760201457059,0.03773,111670.0,111660.0,0.64257298]
[1760201457258,0.39853,111670.0,111660.0,0.64257298]
[1760201458466,0.001,111670.0,111660.0,1.04257298]
[1760201458964,0.47243258,111680.0,111670.0,0.0894599]
[1760201459159,0.47243258,111680.0,111670.0,0.63347327]
[1760201460264,0.47243258,111680.0,111670.0,1.03347327]
[1760201460265,0.07490258,111680.0,111670.0,1.03347327]
[1760201460763,0.07490258,111680.0,111670.0,1.14619991]
[1760201460964,0.07490258,111680.0,111670.0,1.50699991]
[1760201461160,0.07490258,111680.0,111670.0,1.60984905]
[1760201461764,0.07590258,111680.0,111670.0,1.49712241]
[1760201462858,0.07590258,111680.0,111670.0,1.60957626]
[1760201463055,0.0054,111680.0,111670.0,1.60957626]
[1760201464365,0.0054,111680.0,111670.0,1.49712241]
[1760201466165,0.0054,111680.0,111670.0,1.60957626]
[1760201467965,0.0044,111680.0,111670.0,1.60957626]
[1760201468165,0.0044,111680.0,111670.0,2.01358963]
[1760201468363,0.0044,111680.0,111670.0,1.60957626]
[1760201468964,0.0054,111680.0,111670.0,1.60957626]
[1760201469159,0.0054,111680.0,111670.0,2.01358963]
[1760201469364,0.07214194,111690.0,111680.0,0.0894519]
[1760201469565,0.3608,111700.0,111690.0,0.0894439]
[1760201469865,0.3608,111700.0,111690.0,0.62345727]
[1760201471471,0.43304988,111700.0,111690.0,0.62345727]
[1760201472369,0.3608,111700.0,111690.0,0.62345727]
[1760201472969,0.43112541,111700.0,111690.0,0.72305526]
[1760201474670,0.46597541,111700.0,111690.0,0.72305526]
[1760201474870,0.44470541,111700.0,111690.0,0.72305526]
[1760201476573,0.37438,111700.0,111690.0,0.72305526]
[1760201477470,0.39565,111700.0,111690.0,0.72305526]
[1760201477672,0.79565,111700.0,111690.0,0.13]
[1760201477969,0.8670843,111700.0,111690.0,0.13]
[1760201479876,1.27109767,111700.0,111690.0,0.13]
[1760201480076,0.8670843,111700.0,111690.0,0.13]
[1760201480278,0.8670843,111700.0,111690.0,0.2194439]
[1760201481476,1.32119652,111700.0,111690.0,0.67355612]
[1760201481674,0.4670843,111700.0,111690.0,0.67355612]
[1760201482774,0.4670843,111700.0,111690.0,1.12766834]
[1760201483978,0.4322343,111700.0,111690.0,1.12766834]
[1760201484578,0.3608,111700.0,111690.0,1.12766834]
[1760201484878,0.3608,111700.0,111690.0,1.22703781]
[1760201485074,0.3608,111710.0,111700.0,0.0894359]
[1760201485280,0.3608,111710.0,111700.0,0.67354812]
[1760201485674,0.37438,111710.0,111700.0,0.67354812]
[1760201485875,0.39565,111710.0,111700.0,0.67354812]
[1760201486678,0.46618363,111710.0,111700.0,0.67354812]
[1760201489884,0.86618363,111710.0,111700.0,0.67354812]
[1760201490576,0.86618363,111710.0,111700.0,0.13]
[1760201490577,1.40972375,111710.0,111700.0,0.13]
[1760201490780,0.95561153,111710.0,111700.0,0.13]
[1760201490978,1.40972375,111710.0,111700.0,0.13]
[1760201491284,0.03485,111690.0,111680.0,0.54356242]
[1760201491581,1.21056222,111690.0,111680.0,0.11]
[1760201491780,1.21056222,111690.0,111680.0,0.65356412]
[1760201492283,0.75645,111690.0,111680.0,0.65356412]
[1760201497285,0.75645,111690.0,111680.0,0.1994519]
[1760201497489,0.75645,111690.0,111680.0,0.65356412]
[1760201501384,0.75645,111690.0,111680.0,0.1994519]
[1760201501694,0.75645,111690.0,111680.0,0.65356412]
[1760201517900,1.30000612,111690.0,111680.0,0.1994519]
[1760201518204,1.21056222,111690.0,111680.0,0.65356412]
[1760201518397,0.75645,111690.0,111680.0,0.65356412]
[1760201522202,0.75645,111690.0,111680.0,1.50767634]
[1760201522598,0.39565,111690.0,111680.0,1.05356412]
[1760201525205,0.03485,111690.0,111680.0,1.50767634]
[1760201525513,0.45388363,111710.0,111700.0,0.1250559]
[1760201525706,0.46667363,111710.0,111700.0,0.68916812]
[1760201525900,0.46667363,111710.0,111700.0,0.67648812]
[1760201530607,0.46667363,111710.0,111700.0,0.68916812]
[1760201530806,0.43133363,111710.0,111700.0,0.68916812]
[1760201531008,0.43133363,111710.0,111700.0,1.14328034]
[1760201531207,0.38252,111720.0,111710.0,0.1127279]
[1760201531405,0.38252,111720.0,111710.0,1.13774234]
[1760201531601,0.43173507,111720.0,111710.0,1.13774234]
[1760201533508,0.46716507,111720.0,111710.0,0.2295179]
[1760201533718,0.46716507,111720.0,111710.0,0.67684012]
[1760201534609,0.10636507,111720.0,111710.0,0.67684012]
[1760201535410,0.09265507,111720.0,111710.0,0.68363012]
[1760201535612,0.07093507,111720.0,111710.0,1.13774234]
[1760201535913,0.37359,111730.0,111710.0,1.13774234]
[1760201535914,0.37359,111730.0,111720.0,0.1127199]
[1760201536115,0.39531,111730.0,111720.0,1.16094434]
[1760201537009,0.46860636,111730.0,111720.0,1.16094434]
[1760201537516,0.46860636,111730.0,111720.0,1.18215624]
[1760201539012,0.46860636,111730.0,111720.0,0.72804402]
[1760201541519,0.46860636,111730.0,111720.0,0.67734453]
[1760201547124,0.46860636,111730.0,111720.0,0.2739318]
[1760201547324,0.46860636,111730.0,111720.0,0.67734453]
[1760201556734,0.55801826,111730.0,111720.0,0.67734453]
[1760201558744,1.36143099,111730.0,111720.0,0.1612119]
[1760201559140,0.95801826,111730.0,111720.0,0.1612119]
[1760201562445,0.55801826,111730.0,111720.0,0.1612119]
[1760201566145,0.55801826,111730.0,111720.0,0.2506318]
[1760201570145,0.46860636,111730.0,111720.0,0.2506318]
[1760201573455,0.46860636,111730.0,111720.0,0.2718518]
[1760201579262,0.46860636,111730.0,111720.0,0.67526453]
[1760201584959,0.10780636,111730.0,111720.0,0.67526453]
[1760201588156,0.10780636,111730.0,111720.0,0.2718518]
[1760201588360,0.10780636,111730.0,111720.0,0.67526453]
[1760201589752,0.10780636,111730.0,111720.0,1.07526453]
[1760201589959,0.10780636,111730.0,111720.0,1.08789453]
[1760201590158,0.10780636,111730.0,111720.0,1.44869453]
[1760201590865,0.10780636,111730.0,111720.0,1.43606453]
[1760201592363,0.10780636,111730.0,111720.0,1.07526453]
[1760201592563,0.46860636,111730.0,111720.0,1.07526453]
[1760201593765,0.10780636,111730.0,111720.0,1.07526453]
[1760201598174,0.10780636,111730.0,111720.0,1.44869453]
[1760201598672,0.07329636,111730.0,111720.0,1.95181238]
[1760201598971,0.39668,111740.0,111730.0,0.1231319]
[1760201599172,0.39668,111740.0,111730.0,0.64654463]
[1760201599368,0.02309,111740.0,111730.0,0.64654463]
[1760201599672,0.3608,111760.0,111750.0,0.0966459]
[1760201599869,0.38389,111760.0,111750.0,0.2477359]
[1760201600061,0.76630358,111770.0,111760.0,0.1231079]
[1760201600261,0.76630358,111770.0,111760.0,0.2304779]
[1760201600572,0.03675,111770.0,111760.0,0.2304779]
[1760201600872,0.46984043,111770.0,111760.0,0.2304779]
[1760201601369,0.46984043,111770.0,111760.0,0.14109]
[1760201602568,0.46984043,111770.0,111760.0,0.2304779]
[1760201603369,0.46984043,111770.0,111760.0,0.63389063]
[1760201603569,0.46984043,111770.0,111760.0,0.68396592]
[1760201603871,0.10904043,111770.0,111760.0,0.68396592]
[1760201613875,0.10904043,111770.0,111760.0,0.2304779]
[1760201613876,0.46984043,111770.0,111760.0,0.2304779]
[1760201614078,0.46984043,111770.0,111760.0,0.68396592]
[1760201628894,0.10904043,111770.0,111760.0,0.68396592]
[1760201632199,0.09538043,111770.0,111760.0,0.69121592]
[1760201633196,0.09538043,111770.0,111760.0,0.77139382]
[1760201633798,0.10937043,111770.0,111760.0,0.76414382]
[1760201642703,0.10937043,111770.0,111760.0,0.68396592]